Cogmind - Beta 16 @@@ ROGUE MODE // 2025.11.18 @ 23:04:41 // Winter2019/RPGLIKE Player: Jaegerpls Result: Self-destructed Performance ------------- Evolutions (4) 2000 Regions Visited (5) 1000 Robots Destroyed (82) 410 Value Destroyed (2852) 2852 Prototype IDs (17) 340 Alien Tech Used (0) 0 Bonus (965) 965 TOTAL SCORE: 7567 Bonus ------- High Alert Combat Kills 165 Registered with UFD 300 Met Optimus in HQ 500 Cogmind --------- Core Integrity 116/750 Matter 270/300 Energy 129/430 System Corruption 0% Temperature Cool (0) Movement Flying (80) Ox1 Location -6/Factory Parts ------- > --- POWER (2) -------- Nuclear Core Nuclear Core > --- PROPULSION (4) --- Flightbrick > --- UTILITY (5+3) ---- Improved Cooling System Armor Integrity Analyzer (+) Improved Particle Charger Transmission Jammer Gun Armor (+) Hacking Suite System Shield Makeshift System Restoration Module (+) > --- WEAPON (2+1) ----- Proton Cannon Ion Cannon (+) Plasma Cannon > --- INVENTORY (2) ---- Advanced Weight Redist. System Improved Terrain Scanner Peak State ------------ > --- POWER ------------ Nuclear Core Nuclear Core > --- PROPULSION ------- Flightbrick > --- UTILITY ---------- Improved Cooling System Armor Integrity Analyzer Improved Particle Charger Transmission Jammer Gun Armor Hacking Suite System Shield Makeshift System Restoration Module > --- WEAPON ----------- Proton Cannon Ion Cannon Ion Cannon Plasma Cannon > --- INVENTORY -------- Advanced Weight Redist. System Improved Terrain Scanner [Rating: 93] Favorites ----------- Power Nuclear Core Engine Improved Ion Engine Power Core Nuclear Core Propulsion Hover Unit Wheel Wheel Hover Unit Hover Unit Flight Unit Flightbrick Utility Improved Terrain Scanner Device Improved Terrain Scanner Processor Improved Targeting Computer Hackware System Shield Protection Gun Armor Weapon Particle Cannon Energy Gun Small Laser Energy Cannon Particle Cannon Special Weapon Multitool Build | -11 -10 -10 -8 -8 -6 ------- Run | Yrd Mat Sub Rec Scr Fac Slots Evolved 9 | 4 2 1 . 2 . Power 1 | . . 1 . . . Propulsion 3 | 1 2 . . . . Utility 4 | 2 . . . 2 . Weapon 1 | 1 . . . . . Parts Attached 47 | 7 13 4 10 8 5 Power 10 | 1 3 1 2 3 . Engine 6 | 1 2 1 2 . . Core 4 | . 1 . . 3 . Reactor . | . . . . . . Propulsion 8 | 3 4 1 . . . Treads . | . . . . . . Leg . | . . . . . . Wheel 3 | 3 . . . . . Hover 4 | . 4 . . . . Flight 1 | . . 1 . . . Utility 16 | 1 4 2 1 4 4 Device 8 | 1 2 1 . 1 3 Storage . | . . . . . . Processor 3 | . 2 . . 1 . Hackware 4 | . . . 1 2 1 Protection 1 | . . 1 . . . Artifact . | . . . . . . Weapon 13 | 2 2 . 7 1 1 Energy Gun 2 | 2 . . . . . Energy Cannon 10 | . 2 . 6 1 1 Ballistic Gun . | . . . . . . Ballistic Cannon . | . . . . . . Launcher . | . . . . . . Special Weapon 1 | . . . 1 . . Impact Weapon . | . . . . . . Slashing Weapon . | . . . . . . Piercing Weapon . | . . . . . . Special Melee Weapon . | . . . . . . Unidentified Prototypes . | . . . . . . Parts Lost . | . . . . . . Power . | . . . . . . Propulsion . | . . . . . . Utility . | . . . . . . Weapon . | . . . . . . Highest Loss Streak . | . . . . . . To Critical Strikes . | . . . . . . Average Backups . | . . . 1 . . Power . | . . . . . . Propulsion . | . . . . . . Utility . | . . . . . . Weapon . | . . . . . . Tool/Special . | . . . . . . Unused Backups 1 | . 1 . . . . Power . | . . . . . . Propulsion . | . . . . . . Utility . | . . . . . . Weapon . | . . . . . . Tool/Special 1 | . 1 . . . . Average Slot Usage (%) 78 | . 93 74 68 76 80 Engine 6 | . 9 9 12 3 . Core 5 | . 1 2 . 7 11 Hover 9 | . 28 15 . . . Flight 4 | . . 4 6 5 5 Device 19 | . 24 18 18 17 19 Processor 5 | . 5 8 1 1 5 Hackware 4 | . . . 4 6 11 Protection 2 | . . . 6 5 5 Energy Cannon 19 | . 22 16 16 24 22 Peak Build Rating 93 | 8 17 62 72 86 93 Average Rating 55 | 4 13 38 67 77 88 On Entrance 40 | . 8 17 62 72 86 Avg Prop Armor Cover (%) . | . . . . . . Naked Turns . | . . . . . . Heaviest Build 57 | 7 17 29 49 52 57 Greatest Support 48 | 20 29 34 34 34 48 Greatest Overweight (x) 1 | . 1 . 1 1 1 Average Overweight (x) . | . . . . 1 1 Largest Inventory Capacity 2 | 1 1 1 1 1 2 Average Capacity 1 | 1 1 1 1 1 1 Most Carried 2 | . 1 1 1 1 2 Average Carried . | . . . . . . Final Capacity 2 | 1 1 1 1 1 2 Final Carried 2 | . 1 1 1 . 2 Class Distribution -------------------- 26% | Scout 26% | Hacker-Skirmisher 23% | Scavenger-Mutant 7% | Skirmisher 7% | Derelict-Skirmisher 5% | Mutant Dominant Class ---------------- Scavenger-Mutant | -10/Materials Scout | -10/Subcaves Skirmisher | -8/Recycling Derelict-Skirmisher | -8/Scraptown Hacker-Skirmisher | -6/Factory Resources | -11 -10 -10 -8 -8 -6 ----------- Run | Yrd Mat Sub Rec Scr Fac Matter Collected 740 | 170 260 50 79 96 85 Remotely . | . . . . . . Salvage Created 2726 | 167 971 826 144 . 618 Parts 184 | 12 53 64 5 . 50 Haulers Intercepted 2 | . 2 . . . . Recyclers Shooed 2 | 1 . . . . 1 Parts Field Recycled . | . . . . . . Retrieved Matter . | . . . . . . Parts Self-Destructed 10 | . . 10 . . . Prevented . | . . . . . . Parts Restored . | . . . . . . Kills | -11 -10 -10 -8 -8 -6 ------- Run | Yrd Mat Sub Rec Scr Fac Combat Hostiles Destroyed 58 | . 14 24 1 . 19 Cannons 56 | . 14 24 1 . 17 Classes Destroyed 16 | 2 6 3 1 . 4 Worker 3 | . 2 . . . 1 Builder 1 | . . . . . 1 Tunneler 4 | 4 . . . . . Hauler 2 | . 2 . . . . Recycler 6 | 1 4 . 1 . . Operator 2 | . 2 . . . . Turret 2 | . . 2 . . . Watcher 4 | . 3 . . . 1 Swarmer 21 | . 3 7 . . 11 Grunt 12 | . 11 . . . 1 Duelist 1 | . . . . . 1 Sentry 2 | . . . 1 . 1 Hunter 2 | . . . . . 2 Programmer 3 | . . . . . 3 Artisan 1 | . . 1 . . . Subdweller 17 | . . 17 . . . Best Kill Streak 8 | 5 8 6 1 . 6 Combat Bots Only 6 | . 4 4 1 . 6 Max Kills in Single Turn 2 | 1 2 1 1 . 2 Gunslinging . | . . . . . . Exploded . | . . . . . . Melee . | . . . . . . Uniques/NPCs Destroyed . | . . . . . . Combat | -11 -10 -10 -8 -8 -6 -------- Run | Yrd Mat Sub Rec Scr Fac Hostile Shots Fired 312 | . 51 108 . . 153 Missed 115 | . 12 48 . . 55 Hits 197 | . 39 60 . . 98 Melee 2 | . . . . . 2 Projectile 195 | . 39 60 . . 96 Critical Strikes 5 | . . . . . 5 Damage Taken 3168 | 28 540 970 . . 1630 Core 2495 | 22 433 760 . . 1280 Absorbed by Shields . | . . . . . . Redirected to Core 2251 | 22 367 705 . . 1157 Core Remaining (%) 92 | 96 . . . 89 . Volleys Fired 304 | 6 103 93 11 . 91 Largest 4 | 2 2 2 4 . 4 Hottest 275 | 80 136 136 240 . 275 Shots Fired 564 | 12 175 186 22 . 169 Gun 16 | 12 4 . . . . Cannon 548 | . 171 186 22 . 169 Launcher . | . . . . . . Special . | . . . . . . Kinetic . | . . . . . . Thermal 468 | 6 173 186 22 . 81 Explosive . | . . . . . . Electromagnetic 96 | 6 2 . . . 88 Robot Hit Streak 20 | 9 13 20 2 . 19 Robot Miss Streak 4 | . 4 3 1 . 3 Penetration Max . | . . . . . . Secondary Targets . | . . . . . . Shots Hit Robots 262 | 9 60 127 2 . 64 Core Hits 115 | 7 27 45 2 . 34 Critical Kills 2 | . 2 . . . . Critical Parts Destroyed . | . . . . . . Critical Strikes 6 | 2 2 . . . 2 Meltdown 2 | . 2 . . . . Corrupt 4 | 2 . . . . 2 Melee Attacks . | . . . . . . Impact . | . . . . . . Slashing . | . . . . . . Piercing . | . . . . . . Sneak Attacks . | . . . . . . Combat Hostiles . | . . . . . . Follow-up Attacks . | . . . . . . Damage Inflicted 6313 | 134 1410 2607 44 . 2118 Guns 120 | 102 18 . . . . Cannons 5952 | . 1332 2607 44 . 1969 Explosions 241 | 32 60 . . . 149 Melee . | . . . . . . Ramming . | . . . . . . Kinetic . | . . . . . . Thermal 5066 | 54 1332 2607 44 . 1029 Explosive 60 | . 60 . . . . Electromagnetic 1187 | 80 18 . . . 1089 Impact . | . . . . . . Slashing . | . . . . . . Piercing . | . . . . . . Highest Corruption 2 | . . . . . 2 Average Corruption 1 | . . . . . 1 Corruption Purged 4 | . . . . . 4 Corruption Blocked . | . . . . . . Effects 2 | . . . . . 2 Message Errors 1 | . . . . . 1 Matter Fused 1 | . . . . . 1 Overload Shots . | . . . . . . Overflow Damage 91 | . 40 8 . . 43 Projectiles 77 | . 40 8 . . 29 Explosions 14 | . . . . . 14 Melee . | . . . . . . Knockbacks . | . . . . . . Impact . | . . . . . . Kinetic . | . . . . . . Secondary . | . . . . . . Self-Inflicted Damage 183 | 28 73 . . . 82 Shots 4 | 1 2 . . . 1 Rammed . | . . . . . . Targets Rammed . | . . . . . . Kicked . | . . . . . . Crushed . | . . . . . . Highest Temperature 294 | 6 294 . 170 . 51 Average Temperature 64 | 6 84 . 77 . 18 Received Heat Transfer 681 | . 219 234 . . 228 Siege Activations . | . . . . . . Martial Activations . | . . . . . . Shielding Activations . | . . . . . . Robots Disrupted . | . . . . . . Combat Hostiles . | . . . . . . Robots Corrupted 2 | . . . . . 2 Combat Hostiles 2 | . . . . . 2 Parts Fried 5 | . . . . . 5 Impact Corruptions . | . . . . . . Robots Melted 2 | . 2 . . . . Combat Hostiles . | . . . . . . Parts Melted 14 | . 6 5 . . 3 Heat Transferred 8396 | 150 2368 4662 74 . 1142 Parts Sabotaged . | . . . . . . Parts Stolen . | . . . . . . Parts Stripped . | . . . . . . Power Chain Reactions 1 | 1 . . . . . Alert | -11 -10 -10 -8 -8 -6 ------- Run | Yrd Mat Sub Rec Scr Fac Maximum Alert Level 4 | . 1 . . . 4 Low Security (%) 70 | 100 57 . 100 . 68 Level 1 13 | . 42 . . . 3 Level 2 4 | . . . . . 8 Level 3 8 | . . . . . 14 Level 4 2 | . . . . . 4 Level 5 . | . . . . . . High Security . | . . . . . . Max Security . | . . . . . . Peak Influence 1128 | 10 328 . 81 . 1128 Initial 81 | . 3 . 81 . . Average 195 | 2 172 . 25 . 259 Influence Increases 2719 | 25 840 265 128 . 1461 Destroy 0b10 Robot/C 860 | . 280 180 20 . 380 Destroy 0b10 Robot/NC 110 | 25 65 . 5 . 15 Destroy Leader 172 | . 80 10 . . 82 Successful Hack 96 | . 26 . 25 . 45 Disable Machine 915 | . 285 . 75 . 555 Destroy Structure 296 | . 59 . 3 . 234 Partial Spotted 15 | . 15 . . . . Lose Combat Pursuer 255 | . 30 75 . . 150 Influence Decreases 1591 | 20 544 396 298 . 333 Entered New Map 236 | . 2 145 89 . . Time Decay 1205 | 20 392 251 209 . 333 Purge Threat 150 | . 150 . . . . Squads Dispatched 12 | . 3 . . . 9 Investigation 3 | . 1 . . . 2 Extermination 3 | . . . . . 3 Reinforcement 4 | . 2 . . . 2 Assault 1 | . . . . . 1 Garrison 1 | . . . . . 1 Intercept . | . . . . . . Searches Triggered . | . . . . . . Construction Impeded . | . . . . . . Haulers Reinforced . | . . . . . . Active Scanning Responses . | . . . . . . Cargo Convoy Interrupts . | . . . . . . Stealth | -11 -10 -10 -8 -8 -6 --------- Run | Yrd Mat Sub Rec Scr Fac Distress Signals 2 | . 2 . . . . Communications Jammed 51 | . . . . . 51 Distress Signals 51 | . . . . . 51 Times Spotted 90 | . 25 29 . . 36 Peak Tracking Total 6 | . 5 6 . . 6 Tactical Retreats 9 | . 1 3 . . 5 Traps | -11 -10 -10 -8 -8 -6 ------- Run | Yrd Mat Sub Rec Scr Fac Traps Triggered 3 | . 1 1 . . 1 Indirectly . | . . . . . . Trap Hack Attempts . | . . . . . . Triggered . | . . . . . . Disarmed . | . . . . . . Reprogrammed . | . . . . . . Reused . | . . . . . . Traps Extracted . | . . . . . . Installed . | . . . . . . Triggered . | . . . . . . Machines | -11 -10 -10 -8 -8 -6 ---------- Run | Yrd Mat Sub Rec Scr Fac Machines Disabled 63 | . 20 1 5 . 37 Max in Single Turn 4 | . 2 1 1 . 4 Machines Repaired . | . . . . . . Machines Dismantled . | . . . . . . Machines Sabotaged . | . . . . . . Overloaded Fab Kills . | . . . . . . Hacking | -11 -10 -10 -8 -8 -6 --------- Run | Yrd Mat Sub Rec Scr Fac Machines Accessed 31 | . 7 2 9 8 5 Terminals 12 | . 5 . 5 . 2 Fabricators 1 | . . . . . 1 Repair Stations . | . . . . . . Recycling Units 6 | . 2 . 4 . . Scanalyzers 1 | . . . . . 1 Garrison Access 1 | . . . . . 1 Total Hacks 150 | . 23 13 33 62 19 Successful 124 | . 14 13 25 62 10 Failed 24 | . 8 . 7 . 9 Catastrophic 2 | . . . 2 . . Database Lockouts 2 | . 1 . 1 . . Manual 45 | . 19 . 19 . 7 Terminals 42 | . 19 . 21 . 2 Fabricators 4 | . . . . . 4 Repair Stations . | . . . . . . Recycling Units 16 | . 4 . 12 . . Scanalyzers 7 | . . . . . 7 Garrison Access 6 | . . . . . 6 Terminal Hacks 87 | . 4 13 7 62 1 Record 67 | . . 12 . 55 . Part Schematic 2 | . . . 2 . . Robot Analysis 10 | . 2 . 1 7 . Prototype ID Bank 2 | . . . 2 . . Open DSF 1 | . . . . . 1 Unreport Threat 2 | . 1 . 1 . . Locate Traps 1 | . 1 . . . . Dispatch Records 1 | . . . 1 . . Proto ID Catalog 1 | . . 1 . . . Fabricator Hacks 1 | . . . . . 1 Load Schematic 1 | . . . . . 1 Repair Station Hacks . | . . . . . . Recycling Unit Hacks 10 | . 3 . 7 . . Report Inventory 7 | . 2 . 5 . . Retrieve Components 3 | . 1 . 2 . . Scanalyzer 4 | . . . . . 4 Retrieve Study 4 | . . . . . 4 Garrison Access Hacks . | . . . . . . Unauthorized Hacks 22 | . 7 . 11 . 4 Terminals 14 | . 7 . 7 . . Botnet 4 | . 2 . 2 . . Skim 10 | . 5 . 5 . . Fabricators . | . . . . . . Repair Stations . | . . . . . . Recycling Units 4 | . . . 4 . . Reject 4 | . . . 4 . . Scanalyzers . | . . . . . . Garrison Access 4 | . . . . . 4 Broadcast 1 | . . . . . 1 Decoy 1 | . . . . . 1 Redirect 1 | . . . . . 1 Watchers 1 | . . . . . 1 Data Cores Recovered 2 | . 2 . . . . Used 1 | . 1 . . . . Hacking Detections 13 | . 5 . 4 . 4 Full Trace Events 1 | . . . . . 1 Feedback Events . | . . . . . . Feedback Blocked . | . . . . . . Robot Schematics Acquired . | . . . . . . Robots Built . | . . . . . . Authchips . | . . . . . . Time . | . . . . . . Total Robot Build Rating . | . . . . . . Part Schematics Acquired 2 | . . . 2 . . Parts Built . | . . . . . . Authchips . | . . . . . . Time . | . . . . . . Total Part Build Rating . | . . . . . . Part Studies Acquired 4 | . . . . . 4 Parts Repaired . | . . . . . . Time . | . . . . . . Parts Recycled . | . . . . . . Recycled Matter . | . . . . . . Retrieved Matter . | . . . . . . Retrieved Components 11 | . 3 . 8 . . Parts Scanalyzed . | . . . . . . Part Schematics Acquired . | . . . . . . Parts Damaged . | . . . . . . Bothacking | -11 -10 -10 -8 -8 -6 ------------ Run | Yrd Mat Sub Rec Scr Fac Used RIF Installer . | . . . . . . Robots Hacked . | . . . . . . Non-combat . | . . . . . . Combat . | . . . . . . Robot Hacks Applied . | . . . . . . Relay Couplers Released . | . . . . . . Fabnet Peak Effective % . | . . . . . . Robots Rewired . | . . . . . . Allies Hacked . | . . . . . . Hacks Repelled . | . . . . . . Allies | -11 -10 -10 -8 -8 -6 -------- Run | Yrd Mat Sub Rec Scr Fac Total Allies . | . . . . . . Largest Group . | . . . . . . Highest-Rated Group . | . . . . . . Highest-Rated Ally . | . . . . . . Total Orders . | . . . . . . Ally Attacks . | . . . . . . Total Damage . | . . . . . . Kills . | . . . . . . Allies Corrupted . | . . . . . . Allies Melted . | . . . . . . Intel | -11 -10 -10 -8 -8 -6 ------- Run | Yrd Mat Sub Rec Scr Fac Active Infowar (turns) 7010 | 8 969 2710 508 877 1938 Terrain 6981 | 8 969 2710 508 877 1909 Jamming 421 | . . . . . 421 Robot Analysis Total 10 | . 2 . 1 7 . Derelict Logs Recovered 2 | . . 2 . . . Drone Launches . | . . . . . . Drone Recoveries . | . . . . . . Exploration | -11 -10 -10 -8 -8 -6 ------------- Run | Yrd Mat Sub Rec Scr Fac Turns Passed 7077 | 75 969 2710 508 877 1938 Spaces Moved 4782 | 35 819 1591 485 1010 842 Core 4 | 4 . . . . . Treads . | . . . . . . Legs . | . . . . . . Wheels 43 | 31 12 . . . . Hover 1216 | . 807 409 . . . Flight 3519 | . . 1182 485 1010 842 Fastest Speed 40 | 50 48 40 40 80 80 Average Speed 61 | 81 53 42 61 80 80 Slowest Speed 116 | 100 116 48 80 80 80 Overloaded Moves . | . . . . . . Propulsion Burnouts . | . . . . . . Robots Hopped . | . . . . . . Potential Cave-ins . | . . . . . . Cave-ins Triggered . | . . . . . . Exploration Rate (%) 64 | 3 96 90 98 77 22 Regions Visited 5 Branch Regions 3 Pre-discovered Areas 5 | . 1 3 1 . . Known Exits Taken 1 | . . . 1 . . Unknown Exits Taken 4 | 1 1 1 . 1 . Scrap Searched 25 | . . 19 . 6 . Spaces Dug 4 | . . . 4 . . Terrain Destroyed 320 | . 54 . 9 . 257 Melee . | . . . . . . Projectile 14 | . . . 9 . 5 AOE 306 | . 54 . . . 252 Terrain Rammed . | . . . . . . Walls Destroyed . | . . . . . . Machines Disabled . | . . . . . . Actions | -11 -10 -10 -8 -8 -6 --------- Run | Yrd Mat Sub Rec Scr Fac Total 8408 | 66 1171 3444 675 1079 1973 Wait 3122 | 17 199 1703 155 54 994 Move 4777 | 34 818 1590 484 1009 842 Hop . | . . . . . . Pick Up 8 | . 3 2 3 . . Fast Attach 34 | 7 9 3 6 6 3 Attach 4 | . 1 1 1 1 . Detach 7 | 1 2 . 1 1 2 Swap 16 | . 6 1 4 2 3 Drop 31 | 1 10 5 8 6 1 Fire 304 | 6 103 93 11 . 91 Melee . | . . . . . . Ram . | . . . . . . Kick . | . . . . . . Crush . | . . . . . . Escape Stasis . | . . . . . . Rewire . | . . . . . . Trap . | . . . . . . Miscellaneous 105 | . 20 46 2 . 37 Route ------- -11/Scrapyard -10/Materials (discovered 6 exits: *Mat x3 / [*Min x2] / *Sub) -10/Subcaves (discovered 3 exits: [*Mat x2] / *Rec) -8/Recycling (discovered 2 exits: *Fac / *Scr) -8/Scraptown (discovered 2 exits: *Fac x2) -6/Factory (discovered 1 exit: [Low]) History --------- Turn | Location | Event 1 | -11/Scrapyard | Upgraded with Propulsion slot (x1) 1 | -11/Scrapyard | Upgraded with Utility slot (x2) 1 | -11/Scrapyard | Upgraded with Weapon slot (x1) 26 | -11/Scrapyard | Discovered new exit (range 15) 76 | -11/Scrapyard | Entered Materials 104 | -10/Materials | Discovered new exit (range 14) 134 | -10/Materials | Central database locked down 317 | -10/Materials | Build established: Mutant 324 | -10/Materials | Discovered new exit (range 13) 402 | -10/Materials | Identified exit to Materials 433 | -10/Materials | Reached level 2 441 | -10/Materials | Upgraded with Propulsion slot (x1) 444 | -10/Materials | Learned 4 Recycling zone layouts 478 | -10/Materials | Learned location of Subcaves (-10) 501 | -10/Materials | Learned location of 1 exit from Recycling 518 | -10/Materials | Loaded intel: 11 interactive machine locations 581 | -10/Materials | Discovered new exit (range 15) 590 | -10/Materials | Learned Storage stockpile data 695 | -10/Materials | Build established: Scavenger-Mutant 887 | -10/Materials | Reached level 3 894 | -10/Materials | Upgraded with Propulsion slot (x1) 1045 | -10/Materials | Entered Subcaves 1046 | -10/Subcaves | Approached by a straggling Scientist 1153 | -10/Subcaves | Discovered new exit (range 13) 1171 | -10/Subcaves | Shifting Twisted Machinery released Mak. Leg 1483 | -10/Subcaves | Learned location of Recycling (-8) 1579 | -10/Subcaves | Disturbed a concealed Subdweller 1801 | -10/Subcaves | Ambushed by Subdwellers from Twisted Machinery 1965 | -10/Subcaves | Discovered new exit (range 9) 2067 | -10/Subcaves | Visited 4L-MR0's lab 2077 | -10/Subcaves | Found Flightbrick 2078 | -10/Subcaves | Attached Flightbrick, gained temporary slots: Utility x3 2095 | -10/Subcaves | Reached level 4 2098 | -10/Subcaves | Upgraded with Power slot (x1) 2240 | -10/Subcaves | A swath of the cavern ceiling suddenly collapsed 2336 | -10/Subcaves | Learned location of Zion (-7) 2386 | -10/Subcaves | Discovered new exit (range 10) 2387 | -10/Subcaves | Shifting Twisted Machinery released Sub. Optics 2389 | -10/Subcaves | Shifting Twisted Machinery released Riot Gun 2405 | -10/Subcaves | Build established: Scout 2557 | -10/Subcaves | Disturbed a concealed Subdweller 2571 | -10/Subcaves | Core integrity fell below 50% 2895 | -10/Subcaves | Visited Clippyterm 3306 | -10/Subcaves | A swath of the cavern ceiling suddenly collapsed 3466 | -10/Subcaves | A Subdweller sparked back to life 3512 | -10/Subcaves | Found Gun Armor 3514 | -10/Subcaves | Attached Gun Armor, gained temporary slots: Weapon x2 3714 | -10/Subcaves | Met a Zionite searching for "candidates" 3755 | -10/Subcaves | Entered Recycling 3756 | -8/Recycling | Identified exit to Scraptown 3757 | -8/Recycling | Reached level 5 3927 | -8/Recycling | Discovered new exit (range 13) 4179 | -8/Recycling | Learned location of 1 exit from Extension 4231 | -8/Recycling | Scanned before Scraplab entrance 4254 | -8/Recycling | Entered Scraplab 4263 | -8/Recycling | Entered Scraptown 4304 | -8/Scraptown | Build established: Skirmisher 4368 | -8/Scraptown | Visited UFD Registry 4368 | -8/Scraptown | Registered with UFD as "Shadowtube" 4384 | -8/Scraptown | Visited DA-N13 Charitable Foundation 4396 | -8/Scraptown | Visited Abandonware Association 4406 | -8/Scraptown | Learned abandonware demo "POISON.EXE" 4423 | -8/Scraptown | Visited Junk Cannon Lab 4433 | -8/Scraptown | Visited Derelict Rescue Squad 4443 | -8/Scraptown | Visited Analyses Database 4462 | -8/Scraptown | Visited Science Testing Area 4471 | -8/Scraptown | Visited Observation Area 4502 | -8/Scraptown | Visited Curators Association 4538 | -8/Scraptown | Found DCF Scrap (28 items) 4599 | -8/Scraptown | Visited Bundlers 4682 | -8/Scraptown | Visited Shadow of the Wyrm 4727 | -8/Scraptown | Visited Cave Peace 4776 | -8/Scraptown | Visited Cyclists 4781 | -8/Scraptown | Entered Cyclist Reading Room 4876 | -8/Scraptown | Build established: Derelict-Skirmisher 4979 | -8/Scraptown | Discovered new exit (range 11) 5091 | -8/Scraptown | Met Optimus 5091 | -8/Scraptown | Reached level 6 5091 | -8/Scraptown | Accepted into 0bPrime 5091 | -8/Scraptown | Upgraded with Utility slot (x2) 5139 | -8/Scraptown | Discovered new exit (range 3) 5140 | -8/Scraptown | Entered Factory 5142 | -6/Factory | Reached level 7 5397 | -6/Factory | Build established: Hacker-Skirmisher 6150 | -6/Factory | Garrison activated, responded to threat 6385 | -6/Factory | Reached level 8 6440 | -6/Factory | Spotted B-75 Beast 6638 | -6/Factory | Reached level 9 6691 | -6/Factory | Core integrity fell below 50% 6890 | -6/Factory | First assault squad dispatched 6930 | -6/Factory | Reached level 10 7018 | -6/Factory | Discovered new exit (range 12) 7077 | -6/Factory | Core integrity fell below 20% 7078 | -6/Factory | Self-destructed Last Messages --------------- 07071_ U-05 Engineer builds a Door. 07071_ I-36 Angel distress signal jammed. 07072_ L-41 Fighter overheating. 07072_ Critical hit (Burn: +37). 07072_ I-36 Angel distress signal jammed. 07072_ L-41 Fighter overheating. 07073_ L-41 Fighter heat damages Core Shielding, Axe, Carbon-fiber Leg. 07073_ I-36 Angel distress signal jammed. 07073_ L-41 Fighter overheating. 07074_ I-36 Angel distress signal jammed. 07074_ Ion Cannon+ severed. 07075_ Temporary Weapon slot lost. 07075_ L-41 Fighter destroyed. 07075_ U-05 Engineer lays Concrete. 07075_ K-01 Serf collects debris. 07075_ I-36 Angel distress signal jammed. 07077_ U-05 Engineer lays Concrete. 07077_ M-28 Smith repairs G-67 Veteran. 07077_ I-36 Angel distress signal jammed. 07078_ U-05 Engineer lays Concrete. Map ----- +----------------------------------------------------+ | | | | | | | | | | | | | | | | | | | | | | | | | | | | | #"" " "" """####?#???#?#?????????????? | | k "####### ?? ????????????? | | " ####?# ? ? ????????????? | | " ##??#? ? ???????????? | | " ###### ? ? ???????????? | | "#####?# ? ????????????? | | " #??###? ?? ???????????? | | ;;; ##u ;;;;;;##?#### ? ???????????? | | " " "#"# ;;;;;########?#####???????????? | | ; i= ###?#? ???????????????? | | #### + ggmg! ####? ??? ??????????? | | """ ; = %%@ ##### ? ? ???????????? | | %!""R" #############?? #???????????? | | ? ! "" " #####???##### # ??????????? | | ########## ? ????? #???????????? | | # ? # ? ? # ??????????? | | ? ""? + % ? ??? #???????????? | | #??"??? # #####+#####?#??? "?"?? ?#???????????? | | # ?""" ? # ### ###?##? ?""? ??????????????? | | #?? ?? ? # ### ? #??? ? ? ?"" #?????????????? | | #??"""? ? ### ? ? # ?? ? #?????????????? | | # ?"" #?##?